fUSD/lending_fUSD_20251231
["ID","MTS","AMOUNT","RATE_DAILY","PERIOD"]
[400148550,1767154245877,-500.0,0.00013549,2]
[400148552,1767154245887,-500.0,0.00013549,2]
[400148554,1767154245897,-500.0,0.00013549,2]
[400148556,1767154245907,-500.0,0.00013549,2]
[400148558,1767154245917,-500.0,0.00013549,2]
[400148560,1767154245927,-660.35,0.00014458,2]
[400148562,1767154245936,-151.0,0.00015068,2]
[400148564,1767154245947,-151.0,0.00015068,2]
[400148566,1767154245957,-151.0,0.00015068,2]
[400148568,1767154245967,-237.179625,0.00015068,2]
[400148570,1767154245977,-151.0,0.00015463,2]
[400148572,1767154245987,-151.0,0.00015463,2]
[400148574,1767154245997,-151.0,0.00015463,2]
[400148576,1767154246007,-151.0,0.00016,2]
[400148579,1767154246016,-151.0,0.00016,2]
[400148580,1767154246026,-151.0,0.00016,2]
[400148581,1767154246035,-151.0,0.00016,2]
[400148582,1767154246045,-151.0,0.00016,2]
[400148583,1767154246055,-151.0,0.00016,2]
[400148584,1767154246064,-150.0,0.00016973,2]
[400148585,1767154246074,-151.0,0.00016986,2]
[400148586,1767154246083,-151.0,0.00016986,2]
[400148587,1767154246093,-151.0,0.00016986,2]
[400148588,1767154246103,-10403.02142869,0.00017,2]
[400148589,1767154246115,-547.44,0.00017,2]
[400148590,1767154246127,-405.8537147,0.00017,2]
[400148591,1767154246139,-15879.51192325,0.00017,2]
[400148593,1767154246151,-1089.88117537,0.00017,2]
[400148596,1767154246166,-359.04224733,0.00017,2]
[400148598,1767154246178,-1081.03893058,0.00017,2]
[400148604,1767154246224,-500.0,0.00013549,2]
[400148606,1767154246238,-4296.75088854,0.00017,2]
[400148608,1767154246250,-5210.14308199,0.00017,2]
[400148612,1767154246287,-593.82396974,0.00017,2]
[400148614,1767154246299,-5717.99992,0.00017,2]
[400148616,1767154246311,-1575.86652892,0.00017,2]
[400148619,1767154246324,-553.38530473,0.00017,2]
[400148621,1767154246336,-13366.030554,0.00017,2]
[400148622,1767154246376,32.39338933,0.00013549,2]
[400148650,1767154248177,-186.80973758,0.00013549,2]
[400148651,1767154252353,-214.45265973,0.00013549,2]
[400148652,1767154252759,300.0,0.00013523,2]
[400148653,1767154252810,300.0,0.00013502,2]
[400148654,1767154255710,-66.34421336,0.00013549,2]
[400148655,1767154255741,-99.99999983,0.00013549,2]
[400148656,1767154259668,-167.84776934,0.00013549,2]
[400148657,1767154261170,-232.15223083,0.00013549,2]
[400148658,1767154261201,-92.25420939,0.00013549,2]
[400148659,1767154264419,-172.44,0.00013548,2]
[400148660,1767154265932,-127.56,0.00013548,2]
[400148661,1767154265956,-160.71407549,0.00013549,2]
[400148662,1767154268464,-89.28592451,0.00013549,2]
[400148663,1767154268492,-126.20149302,0.00013549,2]
[400148664,1767154270569,-281.54429759,0.00013549,2]
[400148665,1767154270597,-188.01619582,0.00013549,2]
[400148666,1767154272306,-311.98380418,0.00013549,2]
[400148667,1767154272335,-180.42847508,0.00013549,2]
[400148668,1767154273684,-313.01347322,0.00013549,2]
[400148669,1767154275716,-6.5580517,0.00013549,2]
[400148670,1767154275744,-160.75987812,0.00013549,2]
[400148671,1767154277864,-265.5971327,0.00013549,2]
[400148672,1767154280325,-73.64298918,0.00013549,2]
[400148673,1767154280355,-156.60302264,0.00013549,2]
[400148674,1767154283271,-181.65421159,0.00013549,2]
[400148675,1767154285790,-161.74276577,0.00013549,2]
[400148676,1767154285821,-126.97747824,0.00013549,2]
[400148677,1767154289494,-373.02252176,0.00013549,2]
[400148678,1767154289530,-70.89531381,0.00013549,2]
[400148679,1767154291531,-429.10468619,0.00013549,2]
[400148680,1767154291563,-500.0,0.00013549,2]
[400148681,1767154291597,-131.05528791,0.00013549,2]
[400148682,1767154293462,-368.94471209,0.00013549,2]
[400148683,1767154293495,-28.30628325,0.00013549,2]
[400148684,1767154295397,-455.30712212,0.00013549,2]
[400148685,1767154297442,-16.38659463,0.00013549,2]
[400148686,1767154297472,-158.84712762,0.00013549,2]
[400148687,1767154298831,-121.15693116,0.00013549,2]
[400148688,1767154298861,-500.0,0.00013549,2]
[400148689,1767154298891,-138.13953267,0.00013549,2]
[400148690,1767154301057,-340.7428582,0.00013549,2]
[400148691,1767154302601,-21.11760913,0.00013549,2]
[400148692,1767154302631,-238.13953267,0.00013549,2]
[400148693,1767154304344,-227.16478493,0.00013699,2]
[400148694,1767154308065,-272.83521507,0.00013699,2]
[400148695,1767154308088,-27.16478493,0.00013699,2]
[400148696,1767154311508,-300.0,0.00013699,2]
[400148722,1767154348981,5529.0,0.000131,5]
[400148740,1767154354914,-190.57652755,0.00013549,2]
[400148741,1767154357568,-309.42347245,0.00013549,2]
[400148742,1767154357596,-178.46869791,0.00013549,2]
[400148743,1767154359089,-165.49172365,0.00013549,2]
[400148744,1767154360554,-156.03957844,0.00013549,2]
[400148745,1767154360580,-46.18517866,0.00013549,2]
[400148746,1767154365287,-174.64776622,0.00013549,2]
[400148747,1767154368101,-218.4614165,0.00013549,2]
[400148748,1767154373147,-60.70563862,0.00013549,2]
[400148749,1767154373174,-280.4641188,0.00013549,2]
[400148750,1767154375600,-219.5358812,0.00013549,2]
[400148751,1767154375627,-280.4641188,0.00013549,2]
[400148752,1767154377028,-219.5358812,0.00013549,2]
[400148753,1767154377059,-170.4641188,0.00013549,2]
[400148754,1767154379061,-329.5358812,0.00013549,2]
[400148755,1767154379099,-22.65068826,0.00013549,2]
[400148756,1767154381537,-300.0,0.00013548,2]
[400148757,1767154381565,-152.35058792,0.00013549,2]
[400148758,1767154383607,-257.54926429,0.00013549,2]
[400148759,1767154393242,-259.36606633,0.00013548,2]
[400148760,1767154397054,425.49237516,0.00013481,2]
[400148761,1767154397076,3419.73454008,0.00013481,2]
[400148762,1767154397098,3022.91667676,0.00013481,2]
[400148763,1767154397363,-170.87836276,0.00013548,2]
[400148764,1767154399325,-190.30025053,0.00013548,2]
[400148765,1767154400805,-163.58398172,0.00013548,2]
[400148766,1767154404531,-224.56179504,0.00013548,2]
[400148767,1767154406155,-191.30954362,0.00013548,2]
[400148768,1767154406181,-17.25252727,0.00013549,2]
[400148769,1767154407691,-50.19693226,0.00013549,2]
[400148770,1767154407716,-326.89433447,0.00013549,2]
[400148771,1767154412794,-173.10566553,0.00013549,2]
[400148772,1767154412826,-15.79006327,0.00013549,2]
[400148773,1767154414251,-202.62079403,0.00013549,2]
[400148774,1767154416462,-159.44808783,0.00013549,2]
[400148775,1767154420748,-122.14105487,0.00013549,2]
[400148776,1767154420773,-120.63473026,0.00013549,2]
[400148965,1767154954313,273.85803965,0.0003013,120]
[400148972,1767155234812,5333.99540091,0.0001305,2]
[400148982,1767155288134,3756.559692,7.945e-05,2]
[400148983,1767155289056,1000.0,0.000135,2]
[400148989,1767155370256,152.85550791,0.00030137,120]
[400148997,1767155432023,-267.0,0.00014228,2]
[400148998,1767155432035,-600.0,0.00014228,2]
[400148999,1767155432045,-940.01762166,0.00014228,2]
[400149000,1767155432064,-25.91237834,0.00014228,2]
[400149001,1767155432075,-250.0,0.00014229,2]
[400149002,1767155432086,-81.39122523,0.00014229,2]
[400149003,1767155432100,-1118.60877477,0.00014229,2]
[400149004,1767155432111,-300.0,0.00014229,2]
[400149005,1767155432121,-142.1387802,0.00014229,2]
[400149006,1767155432185,-157.8612198,0.00014229,2]
[400149007,1767155432197,-19391.79,0.0001423,2]
[400149008,1767155432208,-250.0,0.00014269,2]
[400149009,1767155432219,-150.0,0.00014278,2]
[400149010,1767155432239,-195.0,0.00014379,2]
[400149011,1767155432256,-227.16478493,0.00014448,2]
[400149012,1767155432269,-1500.0,0.00014579,2]
[400149013,1767155432281,-578.20924308,0.00014615,2]
[400149014,1767155432296,-234.0,0.00014615,2]
[400149015,1767155432307,-322.6107,0.00014615,2]
[400149017,1767155432318,-200.0,0.00014615,2]
[400149018,1767155432331,-207.4,0.00014615,2]
[400149019,1767155432343,-215.0738,0.00014615,2]
[400149020,1767155432353,-223.0315306,0.00014615,2]
[400149021,1767155432364,-231.28369723,0.00014615,2]
[400149022,1767155432375,-239.84119403,0.00014615,2]
[400149023,1767155432386,-375.99271304,0.00014615,2]
[400149024,1767155432397,-150.0,0.00014871,2]
[400149025,1767155432408,-1000.0,0.00014872,2]
[400149026,1767155432419,-878.38,0.00014904,2]
[400149027,1767155432430,-500.0,0.00014932,2]
[400149028,1767155432441,-198.3162284,0.00015229,2]
[400149029,1767155432452,-200.0,0.00015233,2]
[400149030,1767155432464,-519.44946532,0.00015233,2]
[400149031,1767155432479,-250.0,0.00015233,2]
[400149032,1767155432491,-574.12855637,0.00015233,2]
[400149033,1767155432502,-200.0,0.00015233,2]
[400149034,1767155432513,-200.0,0.00015233,2]
[400149035,1767155432525,-500.0,0.00015233,2]
[400149036,1767155432536,-500.0,0.00015233,2]
[400149037,1767155432548,-500.0,0.00015233,2]
[400149038,1767155432560,-500.0,0.00015233,2]
[400149039,1767155432932,-500.0,0.00015233,2]
[400149040,1767155432951,-500.0,0.00015233,2]
[400149041,1767155432966,-327.25869086,0.00015233,2]
[400149042,1767155432976,-620.0,0.00015233,2]
[400149043,1767155432986,-151.0,0.00015233,2]
[400149044,1767155432995,-151.0,0.00015233,2]
[400149045,1767155433005,-151.0,0.00015233,2]
[400149046,1767155433015,-151.0,0.00015233,2]
[400149047,1767155433024,-151.0,0.00015233,2]
[400149048,1767155433034,-151.0,0.00015233,2]
[400149049,1767155433044,-151.0,0.00015233,2]
[400149050,1767155433054,-151.0,0.00015233,2]
[400149051,1767155433064,-166.63576745,0.00015233,2]
[400149052,1767155433074,-161.68,0.00015234,2]
[400149053,1767155433084,-500.0,0.00015241,2]
[400149054,1767155433094,-79594.26490644,0.00015242,2]
[400149055,1767155433107,-1600.89509356,0.00015242,2]
[400149056,1767155433116,-150.0,0.00015288,2]
[400149057,1767155433126,-150.0,0.00015288,2]
[400149058,1767155433151,-150.0,0.00015288,2]
[400149059,1767155433161,-1026.70611506,0.00015301,2]
[400149060,1767155433172,-500.0,0.00015304,2]
[400149061,1767155433182,-500.0,0.00015321,2]
[400149062,1767155433193,-505.01898847,0.00015321,2]
[400149063,1767155433203,-500.0,0.00015321,2]
[400149064,1767155433213,-200.5323999,0.00015321,2]
[400149065,1767155433223,-500.0,0.00015321,2]
[400149066,1767155433233,-500.0,0.00015321,2]
[400149067,1767155433243,-500.0,0.00015321,2]
[400149068,1767155433254,-500.0,0.00015321,2]
[400149069,1767155433264,-500.0,0.00015321,2]
[400149070,1767155433274,-500.0,0.00015321,2]
[400149071,1767155433284,-500.0,0.00015321,2]
[400149072,1767155433294,-294.96197191,0.00015321,2]
[400149073,1767155433304,-500.0,0.00015321,2]
[400149074,1767155433314,-500.0,0.00015321,2]
[400149075,1767155433325,-1021.0338,0.00015322,2]
[400149076,1767155433335,-33888.6617,0.00015322,2]
[400149077,1767155433345,-168.0,0.00015329,2]
[400149078,1767155433356,-500.0,0.0001537,2]
[400149079,1767155433366,-1000.0,0.00015385,2]
[400149080,1767155433377,-1000.0,0.00015385,2]
[400149081,1767155433387,-1000.0,0.00015385,2]
[400149082,1767155433397,-1000.0,0.00015385,2]
[400149083,1767155433407,-362.156,0.00015385,2]
[400149084,1767155433417,-500.0,0.00015401,2]
[400149085,1767155433428,-500.0,0.00015401,2]
[400149086,1767155433439,-500.0,0.00015401,2]
[400149087,1767155433449,-500.0,0.00015401,2]
[400149088,1767155433459,-500.0,0.00015401,2]
[400149089,1767155433470,-500.0,0.00015401,2]
[400149090,1767155433479,-500.0,0.00015401,2]
[400149091,1767155433495,-500.0,0.00015401,2]
[400149092,1767155433505,-500.0,0.00015401,2]
[400149093,1767155433515,-500.0,0.00015401,2]
[400149094,1767155433525,-500.0,0.00015401,2]
[400149095,1767155433536,-500.0,0.00015401,2]
[400149096,1767155433546,-500.0,0.00015401,2]
[400149097,1767155433556,-500.0,0.00015401,2]
[400149098,1767155433567,-264.1454814,0.00015401,2]
[400149099,1767155433578,-500.0,0.00015401,2]
[400149100,1767155433588,-500.0,0.00015401,2]
[400149101,1767155433598,-500.0,0.00015401,2]
[400149102,1767155433609,-500.0,0.00015401,2]
[400149103,1767155433619,-500.0,0.00015401,2]
[400149104,1767155433630,-500.0,0.00015401,2]
[400149105,1767155433640,-500.0,0.00015401,2]
[400149106,1767155433651,-500.0,0.00015401,2]
[400149107,1767155433661,-500.0,0.00015401,2]
[400149108,1767155433671,-300.0,0.00015401,2]
[400149109,1767155433681,-345.78261488,0.00015401,2]
[400149110,1767155433695,-154.21738512,0.00015401,2]
[400149111,1767155433705,-500.0,0.00015401,2]
[400149112,1767155433715,-590.32703307,0.00015401,2]
[400149113,1767155433726,-168.0,0.00015422,2]
[400149114,1767155433736,-168.0,0.00015455,2]
[400149115,1767155433747,-168.0,0.00015456,2]
[400149116,1767155433758,-1026.70611506,0.00015479,2]
[400149117,1767155433768,-47998.57,0.00015497,2]
[400149118,1767155433778,-325.0,0.00015555,2]
[400149119,1767155433788,-420.0,0.00015585,2]
[400149120,1767155433797,-420.0,0.00015585,2]
[400149121,1767155433808,-194.69,0.0001563,2]
[400149122,1767155433818,-600.0,0.00015651,2]
[400149123,1767155433829,-300.0,0.00015651,2]
[400149124,1767155433839,-250.0,0.00015651,2]
[400149125,1767155433854,-1680.0,0.00015652,2]
[400149126,1767155433865,-1026.70611506,0.00015656,2]
[400149127,1767155433876,-195.0,0.00015706,2]
[400149128,1767155433891,-325.0,0.00015714,2]
[400149129,1767155433902,-168.0,0.00015741,2]
[400149130,1767155433913,-595.37131296,0.00015781,2]
[400149131,1767155433923,-202.83778722,0.00015781,2]
[400149132,1767155433933,-200.0,0.00015781,2]
[400149133,1767155433944,-325.0,0.00015808,2]
[400149134,1767155433955,-1026.70611506,0.00015834,2]
[400149135,1767155433966,-156.92551068,0.000159,2]
[400149136,1767155433976,-762.05269932,0.00015901,2]
[400149137,1767155433987,-1031.996,0.00015905,2]
[400149138,1767155433997,-173.54728091,0.00015907,2]
[400149139,1767155434008,-168.0,0.00015927,2]
[400149140,1767155434018,-500.0,0.00015931,2]
[400149141,1767155434028,-500.0,0.00015931,2]
[400149142,1767155434038,-334.5472959,0.00015984,2]
[400149143,1767155434048,-174.0409799,0.0001599,2]
[400149144,1767155434058,-325.0,0.00015997,2]
[400149145,1767155434069,-912.20995816,0.00016,2]
[400149146,1767155434079,-24846.01588479,0.00016,2]
[400149147,1767155434093,-26299.54564732,0.00016,2]
[400149148,1767155434104,-4002.77317915,0.00016,2]
[400149151,1767155438059,-152.43012698,0.00015999,2]
[400149152,1767155438069,-500.0,0.00015999,2]
[400149153,1767155438079,-283.38151022,0.00015999,2]
[400149154,1767155438090,-288.50693389,0.00015999,2]
[400149155,1767155438100,-233.55814857,0.00015999,2]
[400149156,1767155438113,-408.09298205,0.00015999,2]
[400149157,1767155438123,-682.56761763,0.00016,2]
[400149158,1767155438170,-11727.85914153,0.00016,2]
[400149159,1767155438180,-65935.23133921,0.00016,4]
[400149160,1767155438196,-5939.7185,0.00016,4]
[400149328,1767155440094,-972.15998328,0.00016,4]
[400149335,1767155440149,-2315.09651318,0.00016,4]
[400149342,1767155440206,-1123.42602351,0.00016,4]
[400149345,1767155440222,-1646170.17413353,0.00016,4]
[400149347,1767155440231,-255.0,0.00016001,2]
[400149349,1767155440241,-26484.1504765,0.00016007,2]
[400149351,1767155440251,-1026.70611506,0.00016012,2]
[400149353,1767155440261,-174.04,0.00016036,2]
[400149355,1767155440270,-473.0,0.00016055,2]
[400149357,1767155440279,-151.0,0.00016065,2]
[400149359,1767155440289,-151.0,0.00016065,2]
[400149361,1767155440298,-325.0,0.00016079,2]
[400149363,1767155440308,-168.0,0.00016131,2]
[400149365,1767155440317,-500.0,0.00016137,2]
[400149367,1767155440327,-150.0,0.00016137,2]
[400149369,1767155440336,-156.92551065,0.0001615,2]
[400149371,1767155440347,-168.0,0.00016162,2]
[400149373,1767155440357,-1026.70611506,0.00016189,2]
[400149375,1767155440367,-5000.00004242,0.000162,5]
[400149377,1767155440376,-173.54728091,0.00016238,2]
[400149380,1767155440387,-325.0,0.00016288,2]
[400149382,1767155440396,-617.40005154,0.00016329,2]
[400149384,1767155440408,-201.58618504,0.00016329,2]
[400149386,1767155440418,-1026.70611506,0.00016367,2]
[400149388,1767155440427,-168.0,0.00016405,2]
[400149390,1767155440437,-325.0,0.0001643,2]
[400149392,1767155440446,-168.0,0.00016435,2]
[400149394,1767155440455,-500.0,0.00016438,2]
[400149396,1767155440465,-500.0,0.00016438,2]
[400149398,1767155440475,-500.0,0.00016438,2]
[400149400,1767155440484,-500.0,0.00016438,2]
[400149402,1767155440494,-500.0,0.00016438,2]
[400149404,1767155440503,-500.0,0.00016438,2]
[400149406,1767155440514,-500.0,0.00016438,2]
[400149408,1767155440524,-500.0,0.00016438,2]
[400149410,1767155440534,-423.86334146,0.00016438,2]
[400149412,1767155440543,-168.0,0.00016463,2]
[400149414,1767155440553,-1206.77387424,0.0001647,2]
[400149416,1767155440563,-1026.70611506,0.00016545,2]
[400149418,1767155440572,-168.0,0.00016557,2]
[400149421,1767155440583,-168.0,0.00016566,2]
[400149423,1767155440592,-173.54728091,0.00016569,2]
[400149425,1767155440602,-1000.0,0.0001657,2]
[400149427,1767155440611,-325.0,0.00016579,2]
[400149429,1767155440620,-325.0,0.00016592,2]
[400149431,1767155440630,-1000.0,0.000166,2]
[400149433,1767155440641,-642.94,0.00016602,2]
[400149435,1767155440652,-325.0,0.00016644,2]
[400149437,1767155440662,-442.89086998,0.0001666,2]
[400149439,1767155440672,-179.02921641,0.00016699,2]
[400149441,1767155440681,-167.11343897,0.00016699,2]
[400149443,1767155440692,-150.0,0.00016699,2]
[400149445,1767155440702,-150.0,0.00016699,2]
[400149448,1767155440711,-150.0,0.00016699,2]
[400149451,1767155440721,-2238.16663764,0.00016708,2]
[400149453,1767155440730,-164.82436394,0.00016708,2]
[400149455,1767155440741,-1026.70611506,0.00016722,2]
[400149458,1767155440752,-2238.16663761,0.00016729,2]
[400149460,1767155440762,-1000.0,0.0001673,2]
[400149462,1767155440771,-414.2560411,0.00016748,2]
[400149464,1767155440781,-2238.16663761,0.00016751,2]
[400149467,1767155440803,-221.48185645,0.00016754,2]
[400149469,1767155440814,-196.62845419,0.00016754,2]
[400149472,1767155440824,-150.0,0.00016754,2]
[400149474,1767155440835,-2238.16663761,0.00016772,2]
[400149476,1767155440846,-325.0,0.00016772,2]
[400149478,1767155440858,-168.0,0.0001678,2]
[400149480,1767155440868,-2238.16663761,0.00016793,2]
[400149483,1767155440878,-500.0,0.00016799,2]
[400149485,1767155440893,-154.97355808,0.00016799,2]
[400149487,1767155440903,-500.0,0.00016799,2]
[400149489,1767155440913,-190.55361039,0.00016799,2]
[400149491,1767155440925,-300.0,0.00016799,2]
[400149493,1767155440935,-300.0,0.00016799,2]
[400149496,1767155440946,-3858.0,0.000168,2]
[400149498,1767155440956,-1000000.0,0.000168,2]
[400149500,1767155440967,-217.85988695,0.00016809,2]
[400149502,1767155440977,-2238.16663761,0.00016815,2]
[400149504,1767155440987,-2238.16663761,0.00016836,2]
[400149506,1767155440997,-2238.16663761,0.00016857,2]
[400149508,1767155441008,-264.33991098,0.00016874,2]
[400149510,1767155441018,-640.24385345,0.00016877,2]
[400149513,1767155441028,-2238.16663761,0.00016879,2]
[400149515,1767155441038,-417.4945,0.000169,2]
[400149517,1767155441049,-1000.0,0.000169,2]
[400149519,1767155441059,-2039.8504,0.000169,2]
[400149521,1767155441070,-163.33851616,0.000169,2]
[400149523,1767155441080,-2238.16663761,0.000169,2]
[400149525,1767155441090,-1026.70611506,0.000169,2]
[400149527,1767155441100,-164.82436394,0.000169,2]
[400149529,1767155441111,-173.54728091,0.000169,2]
[400149531,1767155441120,-301.2307836,0.000169,2]
[400149534,1767155441132,-539.54367134,0.000169,2]
[400149536,1767155441142,-1000.0,0.0001697,2]
[400149538,1767155441152,-706.99668348,0.0001697,2]
[400149540,1767155441162,-1000.0,0.0001697,2]
[400149542,1767155441172,-150.0,0.00016973,2]
[400149544,1767155441183,-150.0,0.00016973,2]
[400149546,1767155441192,-150.55633321,0.00016986,2]
[400149548,1767155441202,-152.10127393,0.00016986,2]
[400149550,1767155441211,-174.0409799,0.0001699,2]
[400149552,1767155441221,-174.0409799,0.0001699,2]
[400149554,1767155441231,-467.19773594,0.00016999,2]
[400149556,1767155441240,-567.50706892,0.00016999,2]
[400149559,1767155441252,-300.0,0.00016999,2]
[400149561,1767155441261,-681.43055394,0.00016999,2]
[400149563,1767155441271,-300.0,0.00016999,2]
[400149565,1767155441281,-307.4523728,0.00016999,2]
[400149567,1767155441291,-3985596.14263284,0.00017,2]
[400149587,1767155441466,-2359.80163913,0.00017,2]
[400149589,1767155441477,-1982.25915616,0.00017,2]
[400149592,1767155441489,-4384.69147559,0.00017,2]
[400149693,1767155442439,-1.7e-07,0.00017,2]
[400149694,1767155442451,-774.6985844,0.00017,2]
[400149743,1767155444653,-156.92551065,0.000164,2]
[400149744,1767155444663,-1438.56223778,0.00017,2]
[400149745,1767155444709,-333.950754,0.00017,2]
[400149763,1767155446012,-156.92551065,0.0001665,2]
[400149764,1767155446022,-490.30089649,0.00017,2]
[400149765,1767155446035,-409.14193754,0.00017,2]
[400149766,1767155446048,-2640.0,0.00017,2]
[400149767,1767155446066,-20525.19291482,0.00017,2]
[400149799,1767155588572,299.611847,7.945e-05,2]
[400149821,1767155653976,164.75,7.887e-05,2]
[400149822,1767155654162,164.75,0.00010517,2]
[400149823,1767155654374,164.75,0.00013146,2]
[400149829,1767155900621,-760.39,0.00013699,2]
[400149830,1767155900649,-73.06286255,0.00014294,2]
[400149831,1767155960029,-121.93713745,0.00014294,2]
[400149832,1767155960055,-68.50252386,0.00014495,2]
[400149833,1767155962667,-126.49747614,0.00014495,2]
[400149834,1767155962691,-121.50252386,0.00014517,2]
[400149835,1767155965082,-307.07000795,0.00014517,2]
[400149836,1767155968330,-448.49237684,0.00014517,2]
[400149837,1767155972294,-220.54331013,0.00014517,2]
[400149849,1767156004369,-169.02062467,0.00014444,2]
[400149851,1767156124441,-166.66,0.00013574,2]
[400149852,1767156124469,-100.29326472,0.0001386,2]
[400149854,1767156199460,-66.36673528,0.0001386,2]
[400149855,1767156199486,-171.68230164,0.00014003,2]
[400149860,1767156268381,174.97,0.00011252,2]
[400149861,1767156268434,174.97,0.00013127,2]
[400149868,1767156364400,-277.8180708,0.00013932,2]
[400149869,1767156365927,-166.66,0.00013932,2]
[400149870,1767156367354,-162.8662351,0.00013932,2]
[400149871,1767156369316,-196.45595785,0.00013932,2]
[400149873,1767156373105,-278.54693503,0.00013932,2]
[400149874,1767156374626,-157.65642569,0.00013932,2]
[400149875,1767156379505,-202.26185153,0.00013932,2]
[400149876,1767156379530,-175.53182734,0.00013966,2]
[400149877,1767156379559,-29.6761502,0.00014003,2]
[400149882,1767156632114,-266.0,0.00014018,2]
[400149883,1767156632125,-195.0,0.00014018,2]
[400149884,1767156632134,-250.0,0.00014026,2]
[400149885,1767156632144,-20.41618718,0.00014034,2]
[400149886,1767156632169,-1572.75381282,0.00014034,2]
[400149887,1767156632179,-999.0,0.00014066,3]
[400149888,1767156632190,-250.0,0.00014071,2]
[400149889,1767156632200,-195.0,0.00014092,2]
[400149890,1767156632210,-166.66,0.00014146,2]
[400149891,1767156632220,-1852.42,0.00014349,2]
[400149892,1767156632230,-166.66,0.00014431,2]
[400149893,1767156632240,-4.53157742,0.00014517,2]
[400149894,1767156632252,-1789.3502038,0.00014517,2]
[400149895,1767156632262,-1200.0,0.00014641,2]
[400149896,1767156632271,-300.0,0.00014695,2]
[400149897,1767156632281,-300.0,0.00014695,2]
[400149898,1767156632290,-1200.0,0.00014696,2]
[400149899,1767156632300,-300.0,0.00014697,2]
[400149900,1767156632311,-1323.44,0.00014698,2]
[400149901,1767156632321,-166.66,0.00014717,2]
[400149902,1767156632331,-1203.0,0.00014889,2]
[400149903,1767156632340,-166.66,0.000149,2]
[400149904,1767156632350,-268.55639569,0.00014933,2]
[400149905,1767156632360,-3025.90922136,0.00014933,2]
[400149906,1767156632370,-303.20198731,0.00014933,2]
[400149907,1767156632380,-174.97,0.00015003,2]
[400149908,1767156632390,-166.66,0.00015003,2]
[400149909,1767156632400,-457.2644693,0.00015032,2]
[400149910,1767156632410,-2741.42180995,0.00015033,2]
[400149911,1767156632422,-290.05642929,0.00015033,2]
[400149912,1767156632435,-357.87831592,0.00015033,2]
[400149913,1767156632446,-3681.56994553,0.00015033,2]
[400149914,1767156632459,-1613.9502996,0.00015033,2]
[400149915,1767156632470,-4328.06566314,0.00015033,2]
[400149916,1767156632498,-3045.52,0.00015033,2]
[400149917,1767156632510,-716.94858052,0.00015033,2]
[400149918,1767156632526,-1000.22428229,0.00015033,2]
[400149919,1767156632537,-835.19021143,0.00015033,2]
[400149920,1767156632549,-567.05475244,0.00015033,2]
[400149921,1767156632560,-603.84235597,0.00015033,2]
[400149922,1767156632589,-406.33173265,0.00015033,2]
[400149925,1767156632600,-780.71527075,0.00015033,2]
[400149926,1767156632613,-2065.94529364,0.00015033,2]
[400149927,1767156632624,-2062.13091084,0.00015033,2]
[400149928,1767156632635,-12105.02184471,0.00015033,2]
[400149929,1767156632659,-5554.73846656,0.00015033,2]
[400149930,1767156632671,-872.66531044,0.00015033,2]
[400149931,1767156632683,-7051.09620768,0.00015033,2]
[400149932,1767156632714,-14139.36870041,0.00015033,2]
[400149933,1767156632725,-8614.86124748,0.00015033,2]
[400149936,1767156638237,-500.0,0.00015032,2]
[400149937,1767156638247,-257.69352077,0.00015032,2]
[400149938,1767156638257,-344.89713035,0.00015032,2]
[400149939,1767156638268,-286.13251573,0.00015032,2]
[400149940,1767156638278,-449.29726176,0.00015032,2]
[400149941,1767156638288,-500.0,0.00015032,2]
[400149942,1767156638298,-500.0,0.00015032,2]
[400149943,1767156638308,-500.0,0.00015032,2]
[400149944,1767156638318,-500.0,0.00015032,2]